[Event "4th Tata Steel India Blitz Women 2022"]
[Site "Kolkota"]
[Date "2022.12.04"]
[Round "18.4"]
[White "Muzychuk, Anna"]
[Black "Kulkarni Bhakti"]
[Result "1-0"]
[ECO "C28"]
[WhiteElo "2525"]
[BlackElo "2359"]
[Annotator "TA"]
[PlyCount "53"]
[EventDate "2022.11.29"]
[EventType "tourn"]
[EventCountry "IND"]
[SourceTitle "playchess.com"]
[Source "ChessBase"]
[SourceQuality "1"]
[TimeControl "180+2"]

{[%evp 12,52,21,0,-14,-50,-50,-54,56,17,45,0,22,0,51,36,39,35,112,108,114,105,142,142,212,144,152,154,229,225,500,481,423,377,740,698,1802,1132,29989,29990,29998,29999,29999]} 1. e4 {[%emt 0:00:00]} d6 {[%emt 0:00:01]} 2. Nc3 {[%emt 0:00:02]} e5 {[%emt 0:00:05]} 3. f4 {[%emt 0:00:01]} Nf6 {[%emt 0:00:05]} 4. Nf3 {[%emt 0:00:08]} Be7 {[%emt 0:00:05]} 5. Bc4 {[%emt 0:00:08]} O-O {[%emt 0:00:09]} 6. d3 {[%emt 0:00:10]} Nc6 {[%emt 0:00:04]} 7. f5 {[%emt 0:00:09]} Na5 {[%emt 0:00:09] C28: Vienna Game: 2...Nf6 3 Bc4 Nc6.} 8. a3 {[%emt 0:00:12]} Nxc4 {[%emt 0:00:05]} 9. dxc4 {[%emt 0:00:01] [#]} a6 $146 {[%emt 0:00:13]} ({Better is} 9... b5 $15) ({Predecessor:} 9... c6 10. O-O Qb6+ 11. Kh1 Rd8 12. Qe2 h6 13. b3 Qc7 14. Bb2 b6 15. Rae1 Bb7 {1-0 (37) Perez Candelario,M (2569)-Vega Gutierrez,B (2148) Linares 2013}) 10. Bg5 {[%emt 0:00:08]} b5 {[%emt 0:00:04]} 11. Bxf6 {[%emt 0:00:14]} Bxf6 {[%emt 0:00:02]} 12. Qd3 {[%emt 0:00:05]} bxc4 {[%emt 0:00:05]} (12... c6 $11) 13. Qxc4 $14 {[%emt 0:00:01]} a5 {[%emt 0:00:05]} 14. Nd5 {[%emt 0:00:07]} c5 {[%emt 0:00:19]} (14... Bb7 $14) 15. O-O-O {[%emt 0:00:18]} Ba6 {[%emt 0:00:02] [#]} 16. Qc3 {[%emt 0:00:00] White has more active pieces.} Bg5+ {[%emt 0:00:07]} 17. Kb1 {[%emt 0:00:02]} Rb8 {[%emt 0:00:06]} (17... Bb7 $16) 18. h4 {[%emt 0:00:03]} Be7 {[%emt 0:00:15]} 19. g4 {[%emt 0:00:06][%cal Bg2g4,Bg4g5][%mdl 32]} Rb7 {[%emt 0:00:12]} (19... Bb7 $16 20. g5 Kh8) 20. g5 $18 {[%emt 0:00:04] Threatens to win with h5.} Qd7 $2 {[%emt 0:00:08]} (20... Be2 {was worth a try.}) 21. f6 {[%emt 0:00:08]} ({Not} 21. Qxa5 Be2 22. Nxe5 dxe5 $16) 21... Bd8 {[%emt 0:00:05]} 22. Nxe5 {[%emt 0:00:12]} Qe6 $2 {[%emt 0:00:21]} (22... Qc8 23. fxg7 Re8) 23. Nc6 {[%emt 0:00:07][%csl LRa5,LRg7] Pair of Knights!} Qxe4 {[%emt 0:00:19]} 24. Rhe1 {[%emt 0:00:13]} ({Weaker is} 24. Nxa5 Bxa5 25. Qxa5 Rfb8 $16) 24... Qxh4 {[%emt 0:00:06]} 25. fxg7 {[%emt 0:00:08] White mates.} Bxg5 {[%emt 0:00:10]} 26. gxf8=Q+ {[%emt 0:00:06][%mdl 64] [#] Back Rank} Kxf8 {[%emt 0:00:01]} 27. Qh8# {[%emt 0:00:02] Weighted Error Value: White=0.16 (very precise) /Black=0.73} 1-0

[Event "4th Tata Steel India Blitz Women 2022"]
[Site "Kolkota"]
[Date "2022.12.04"]
[Round "18.5"]
[White "Vaishali, Rameshbabu"]
[Black "Ushenina, Anna"]
[Result "1/2-1/2"]
[ECO "C42"]
[WhiteElo "2454"]
[BlackElo "2454"]
[Annotator "TA"]
[PlyCount "95"]
[EventDate "2022.11.29"]
[EventType "tourn"]
[EventCountry "IND"]
[SourceTitle "playchess.com"]
[Source "ChessBase"]
[SourceQuality "1"]
[TimeControl "180+2"]

{[%evp 20,95,-25,-23,10,5,36,-6,-9,-4,0,0,0,0,0,0,0,-6,-6,-9,-5,-75,0,0,7,0,0,0,0,0,0,0,0,0,0,-7,-6,-10,0,-187,-166,-135,-106,-202,-206,-291,-293,-398,-167,-151,-142,-149,-145,-142,0,-137,-123,-116,0,0,0,-8,-8,-14,0,0,0,-170,-170,-177,0,0,0,0,0,0,0,0]} 1. e4 {[%emt 0:00:02]} e5 {[%emt 0:00:03]} 2. Nf3 {[%emt 0:00:02]} Nf6 {[%emt 0:00:01]} 3. Nxe5 {[%emt 0:00:02]} d6 {[%emt 0:00:01]} 4. Nf3 {[%emt 0:00:02]} Nxe4 {[%emt 0:00:02]} 5. Qe2 {[%emt 0:00:04]} Qe7 {[%emt 0:00:02]} 6. d3 {[%emt 0:00:01]} Nf6 {[%emt 0:00:01]} 7. Bg5 {[%emt 0:00:01]} Nbd7 {[%emt 0:00:04]} 8. Nc3 {[%emt 0:00:09]} h6 {[%emt 0:00:02]} 9. Bh4 {[%emt 0:00:17]} Qxe2+ {[%emt 0:00:16]} 10. Bxe2 {[%emt 0:00:02]} g5 {[%emt 0:00:25]} 11. Bg3 {[%emt 0:00:01]} Nh5 {[%emt 0:00:04] C42: Petroff Defence: 3 Nxe5 and unusual White 3rd moves.} 12. Nd4 {[%emt 0:00:54]} Nxg3 {[%emt 0:00:06]} 13. hxg3 {[%emt 0:00:02] [#]} (13. fxg3 $5 {[%cal Re1g1]} Nf6 14. O-O $14) 13... Nb6 $146 {[%emt 0:00:42][%cal Bd7b6,Bb6c8,Bc8d6][%mdl 32]} ({Predecessor:} 13... c6 14. Bg4 d5 15. O-O-O Nc5 {½-½ (15) Varga,Z (2434)-Okhotnik,V (2453) Balatonboglar 2016}) 14. g4 {[%emt 0:00:39]} Bg7 {[%emt 0:00:10]} 15. Nf5 {[%emt 0:00:39]} Bxf5 {[%emt 0:00:02]} 16. gxf5 {[%emt 0:00:01]} d5 {[%emt 0:00:07]} 17. O-O-O {[%emt 0:00:19]} c6 {[%emt 0:00:04]} 18. d4 {[%emt 0:00:04]} Nc8 {[%emt 0:00:21]} 19. g4 {[%emt 0:00:10]} Nd6 {[%emt 0:00:03][%cal Oh6h5]} 20. Bf3 {[%emt 0:00:02] Inhibits h5.} (20. Nb1 $11 {keeps the balance.}) 20... Kd7 {[%emt 0:00:06]} (20... h5 $1 $17) 21. Ne2 $11 {[%emt 0:00:02]} Rhe8 {[%emt 0:00:31]} 22. Ng3 {[%emt 0:00:01]} b5 {[%emt 0:00:15][%cal Bb7b5,Bb5b4,Bb4c3][%mdl 32]} 23. c3 {[%emt 0:00:04]} a5 {[%emt 0:00:01]} 24. Rde1 {[%emt 0:00:04]} Rxe1+ {[%emt 0:00:03]} 25. Rxe1 {[%emt 0:00:00]} b4 {[%emt 0:00:01]} 26. Kc2 {[%emt 0:00:04]} Rb8 {[%emt 0:00:03]} 27. Be2 {[%emt 0:00:04]} a4 {[%emt 0:00:03]} 28. Bd3 {[%emt 0:00:02]} a3 {[%emt 0:00:08]} 29. bxa3 $2 {[%emt 0:00:01] [#]} (29. Nh5 $11 {and White has nothing to worry.} Bh8 30. f6) 29... bxc3 $1 $19 {[%emt 0:00:03]} ({And not} 29... bxa3 30. Rb1 Rxb1 31. Kxb1 $11) 30. Ne2 {[%emt 0:00:02]} Ra8 {[%emt 0:00:02]} 31. Rb1 {[%emt 0:00:02]} (31. a4 $17) 31... Rxa3 {[%emt 0:00:02]} 32. Rb3 {[%emt 0:00:04]} (32. Rd1 {is a better defense.}) 32... Rxa2+ 33. Kxc3 {[%emt 0:00:01]} Ra4 {[%emt 0:00:05]} (33... c5 $142 {...c4 is the strong threat.} 34. Rb8 Kc7) 34. Rb4 {[%emt 0:00:01]} Ra3+ {[%emt 0:00:02]} 35. Rb3 {[%emt 0:00:01]} Ra1 {[%emt 0:00:01]} 36. Kd2 {[%emt 0:00:02] Inhibits c5.} Ra2+ {[%emt 0:00:02]} ({Black should play} 36... Ra4 $17 37. Ke3 Bf6) 37. Ke3 {[%emt 0:00:02]} (37. Kc3 $1 $11 {was the only way to keep the balance.}) 37... Bf8 {[%emt 0:00:03]} ({Of course not} 37... Nc4+ $6 38. Bxc4 dxc4 39. Rb7+ Ke8 40. Rb6 $11) 38. Rb8 {[%emt 0:00:02]} Nc8 {[%emt 0:00:02]} (38... Be7 $17 {Hoping for ...Ra3.} 39. Rb6 Ra3) 39. Rb7+ $11 {[%emt 0:00:01]} Ke8 {[%emt 0:00:02]} 40. Rc7 {[%emt 0:00:03]} Na7 {[%emt 0:00:01]} 41. Rb7 {[%emt 0:00:02]} Bd6 {[%emt 0:00:02] Inhibits Rb8+.} 42. f6 $1 {[%emt 0:00:03]} Ra3 {[%emt 0:00:02]} 43. Rb6 {[%emt 0:00:03] [#]} (43. Kd2 $11 {and White is okay.}) 43... Kd7 $19 {[%emt 0:00:02] aiming for ...Nb5.} 44. Rb7+ {[%emt 0:00:01]} Ke8 $2 {[%emt 0:00:01]} ({Black should try} 44... Bc7 $19 {Threatens to win with ...Nb5.} 45. Kd2 Nc8) 45. Kd2 $11 {[%emt 0:00:01] The position is equal.} Ra2+ {[%emt 0:00:03]} 46. Ke3 {[%emt 0:00:01]} Ra3 {[%emt 0:00:01]} 47. Kd2 {[%emt 0:00:01]} Ra2+ {[%emt 0:00:02]} 48. Ke3 {[%emt 0:00:02] Weighted Error Value: White=0.34/Black=0.23 (precise)} 1/2-1/2